[Event "Presidents Day IM-Norm 2024"]
[Site "Santa Clara"]
[Date "2024.02.18"]
[Round "6.1"]
[White "Yan, Nathan"]
[Black "Cardoso Cardoso, Jose Gabriel"]
[Result "0-1"]
[ECO "B66"]
[WhiteElo "2311"]
[BlackElo "2477"]
[Annotator "TA"]
[PlyCount "114"]
[EventDate "2024.02.13"]
[EventType "tourn"]
[EventCountry "USA"]
[SourceTitle "playchess.com"]
[Source "ChessBase"]
[SourceQuality "1"]
[TimeControl "5400+30"]

{[%evp 27,114,0,0,0,0,0,0,0,0,-16,-10,-34,-5,-9,0,-34,0,0,-12,-10,0,-12,0,-28,0,-14,-27,-35,-37,-40,-42,-49,-47,-43,-46,-45,-32,-35,-31,-30,-12,-5,-6,-18,-12,-18,-18,-18,-18,-27,-29,-27,-27,-30,-26,-22,-18,-31,-25,-56,-63,-56,-63,-119,-116,-244,-244,-1252,-87,-80,-80,-80,-73,-73,-73,-112,-112,-112,-112,-112,-73,-29974,-29975,-29975,-29976,-29976,-29976,-29977,-29978]} 1. e4 {[%emt 0:00:41]} c5 {[%emt 0:00:07]} 2. Nf3 {[%emt 0:00:32]} d6 {[%emt 0:00:08]} 3. d4 {[%emt 0:00:40]} cxd4 {[%emt 0:00:12]} 4. Nxd4 {[%emt 0:00:20]} Nf6 {[%emt 0:00:08]} 5. Nc3 {[%emt 0:00:15]} Nc6 {[%emt 0:00:17]} 6. Bg5 {[%emt 0:00:56]} e6 {[%emt 0:01:01]} 7. Qd2 {[%emt 0:02:29]} a6 {[%emt 0:00:13]} 8. O-O-O {[%emt 0:00:37]} Bd7 {[%emt 0:00:14][%cal Bc8d7,Bd7c6,Bc6d5][%mdl 32]} 9. Nxc6 {[%emt 0:04:39]} Bxc6 {[%emt 0:01:42]} 10. f3 {[%emt 0:05:05]} h6 {[%emt 0:05:37]} 11. Bf4 {[%emt 0:01:59]} d5 {[%emt 0:06:34]} 12. exd5 {[%emt 0:02:21]} Nxd5 {[%emt 0:01:15]} 13. Nxd5 {[%emt 0:01:30]} Qxd5 {[%emt 0:01:23]} 14. Qxd5 {[%emt 0:00:55]} Bxd5 {[%emt 0:00:05]} 15. Kb1 {[%emt 0:01:30]} Bc5 {[%emt 0:07:48]} 16. Be2 {[%emt 0:03:47]} Ke7 {[%emt 0:06:16]} 17. a3 {[%emt 0:06:39] The position is equal.} b5 {[%emt 0:07:12]} 18. Rhe1 {[%emt 0:03:02][%cal Oe2b5]} Rhd8 {[%emt 0:02:10]} 19. Bd3 {[%emt 0:02:08]} f6 {[%emt 0:08:59]} 20. Kc1 {[%emt 0:02:43]} e5 {[%emt 0:08:48]} 21. Bf5 {[%emt 0:05:55][%cal Of4e5]} Bc6 {[%emt 0:07:05]} 22. Rxd8 {[%emt 0:01:41]} Rxd8 {[%emt 0:00:08]} 23. Be3 {[%emt 0:01:04]} Bd6 {[%emt 0:01:27]} 24. Bb6 {[%emt 0:03:10]} Rb8 {[%emt 0:01:34]} 25. Bf2 {[%emt 0:03:18]} Bd7 {[%emt 0:01:12]} 26. Bxd7 {[%emt 0:01:53]} Kxd7 $11 {[%emt 0:00:02][%mdl 4096] Endgame. KRB-KRB} 27. Rd1 {[%emt 0:01:59] Threatens to win with Bc5.} Ke6 {[%emt 0:00:19]} 28. Rd3 {[%emt 0:01:51]} Rc8 {[%emt 0:01:21]} 29. Bg3 {[%emt 0:02:56]} g5 {[%emt 0:01:09]} 30. Kd1 {[%emt 0:01:21]} h5 {[%emt 0:01:24][%cal Bh6h5,Bh5g4][%mdl 32]} 31. h3 {[%emt 0:05:34]} g4 {[%emt 0:03:55]} 32. hxg4 {[%emt 0:01:19]} hxg4 {[%emt 0:00:07]} 33. Be1 {[%emt 0:01:36]} ({Don't play} 33. fxg4 Rg8 34. Rc3 Rxg4 $17) 33... Rh8 {[%emt 0:00:52]} 34. Rc3 {[%emt 0:02:23]} Kd7 {[%emt 0:04:43]} 35. Ke2 {[%emt 0:02:09]} Rh2 {[%emt 0:06:00]} 36. Kf1 {[%emt 0:02:18]} gxf3 {[%emt 0:01:55]} 37. gxf3 {[%emt 0:02:52]} f5 {[%emt 0:05:24]} 38. Bg3 {[%emt 0:03:53]} Rh1+ {[%emt 0:01:07]} 39. Ke2 {[%emt 0:01:27]} Rb1 {[%emt 0:01:46]} 40. b4 {[%emt 0:03:04]} Rh1 {[%emt 0:00:53]} 41. Bf2 {[%emt 0:02:15]} Rh3 {[%emt 0:00:31]} 42. Rd3 {[%emt 0:01:08]} Ke6 {[%emt 0:00:06]} 43. Kf1 {[%emt 0:01:20]} Rh1+ {[%emt 0:00:25]} 44. Ke2 {[%emt 0:00:29]} Rh7 {[%emt 0:03:48]} 45. Rc3 {[%emt 0:01:20] [#]} (45. Bg3 $15) 45... Rc7 $1 $17 {[%emt 0:00:12]} 46. Rxc7 {[%emt 0:00:22]} (46. Kd2 $17) 46... Bxc7 {[%emt 0:00:01] KB-KB} 47. a4 $2 {[%emt 0:03:17]} (47. Kd2) 47... Kd5 $2 {[%emt 0:03:41]} (47... bxa4 $19 {Hoping for ...a3.} 48. Kd3 a3) 48. axb5 {[%emt 0:00:52]} axb5 {[%emt 0:00:01]} 49. Kd3 {[%emt 0:00:30]} e4+ {[%emt 0:00:47]} 50. fxe4+ {[%emt 0:00:05]} fxe4+ {[%emt 0:00:04]} 51. Ke2 {[%emt 0:05:21]} Kc4 {[%emt 0:01:02]} 52. Ba7 {[%emt 0:00:19]} Bf4 {[%emt 0:00:27]} ({Much less strong is} 52... Kxb4 53. Ke3 $11) 53. Bc5 {[%emt 0:00:57]} Kc3 {[%emt 0:00:06]} 54. Bf8 $2 {[%emt 0:01:11][%mdl 8192] [#]} (54. Kd1 $17) 54... Kxc2 {[%emt 0:00:07] Black mates.} 55. Be7 {[%emt 0:00:46]} Kc3 {[%emt 0:00:20]} 56. Bf8 {[%emt 0:00:26]} Kc4 {[%emt 0:00:13]} 57. Be7 {[%emt 0:00:35]} Bc1 {[%emt 0:00:07] Weighted Error Value: White=0.41/Black=0.20 (precise) .  Loses game:     	White=1     	---        Missed win:     	---       	Black=1      Mistake:       	White=3     	---        Inaccurate:     	White=4     	Black=4      OK:         	White=12    	Black=16     Best:        	White=2     	Black=1      Strong:       	---       	Black=1} 0-1

[Event "Presidents Day IM-Norm 2024"]
[Site "Santa Clara"]
[Date "2024.02.18"]
[Round "6.3"]
[White "Rodi, Luis Ernesto"]
[Black "Liu, Patrick"]
[Result "0-1"]
[ECO "B30"]
[WhiteElo "2196"]
[BlackElo "2130"]
[Annotator "RC"]
[PlyCount "156"]
[EventDate "2024.02.13"]
[EventType "tourn"]
[EventCountry "USA"]
[SourceTitle "playchess.com"]
[Source "ChessBase"]
[SourceQuality "1"]
[TimeControl "5400+30"]

1. e4 {[%emt 0:06:01]} c5 {[%emt 0:00:01]} 2. Nf3 {[%emt 0:00:07]} e6 {[%emt 0:00:02]} 3. Nc3 {[%emt 0:00:09]} Nc6 {[%emt 0:00:01]} 4. Bb5 {[%emt 0:00:07]} Nd4 {[%emt 0:00:02]} 5. O-O {[%emt 0:00:09]} a6 {[%emt 0:00:05]} 6. Bd3 {[%emt 0:00:04]} Nc6 {[%emt 0:00:09]} 7. Nd5 {[%emt 0:00:05]} g5 {[%emt 0:00:12]} 8. Ne3 {[%emt 0:00:30]} h5 {[%emt 0:00:49]} 9. c3 {[%emt 0:00:06]} Bg7 {[%emt 0:01:40]} 10. Bc2 {[%emt 0:00:18]} g4 {[%emt 0:01:35]} 11. Ne1 {[%emt 0:00:07]} d5 {[%emt 0:00:42]} 12. exd5 {[%emt 0:07:31]} exd5 {[%emt 0:00:02]} 13. Qe2 {[%emt 0:00:24]} Nge7 {[%emt 0:01:13]} 14. f3 {[%emt 0:00:29]} Qd6 {[%emt 0:03:22]} 15. f4 {[%emt 0:02:12]} Be6 {[%emt 0:02:39]} 16. Nf5 {[%emt 0:17:40]} Nxf5 {[%emt 0:01:46]} 17. Bxf5 {[%emt 0:00:06]} O-O-O {[%emt 0:00:54]} 18. Bxe6+ {[%emt 0:03:25]} fxe6 {[%emt 0:00:13]} 19. Rb1 {[%emt 0:00:22]} e5 {[%emt 0:01:26]} 20. d3 {[%emt 0:00:45]} Rdf8 {[%emt 0:01:03]} 21. g3 {[%emt 0:01:25]} Re8 {[%emt 0:03:46]} 22. Qf2 {[%emt 0:01:36]} e4 {[%emt 0:04:48]} 23. dxe4 {[%emt 0:00:25]} Rxe4 {[%emt 0:00:20]} 24. Nd3 {[%emt 0:01:47]} c4 {[%emt 0:01:49]} 25. Ne5 {[%emt 0:04:38]} Bxe5 {[%emt 0:05:47]} 26. fxe5 {[%emt 0:00:06]} Nxe5 {[%emt 0:00:06]} 27. Bf4 {[%emt 0:01:06]} Qc6 {[%emt 0:04:23]} 28. Qa7 {[%emt 0:02:56]} Re8 {[%emt 0:01:30]} 29. Bxe5 {[%emt 0:02:50]} R4xe5 {[%emt 0:00:18]} 30. Rf7 {[%emt 0:00:37]} R5e7 {[%emt 0:00:47]} 31. Rbf1 {[%emt 0:00:11]} Kc7 {[%emt 0:01:33]} 32. R1f6 {[%emt 0:01:52]} Qb5 {[%emt 0:03:39]} 33. a4 {[%emt 0:01:32]} Qd7 {[%emt 0:05:08]} 34. Qc5+ {[%emt 0:03:32]} Kb8 {[%emt 0:00:07]} 35. Rxe7 {[%emt 0:00:10]} Qxe7 {[%emt 0:00:31]} 36. Qxe7 {[%emt 0:02:52]} Rxe7 {[%emt 0:00:55]} 37. Kf2 {[%emt 0:00:02]} Re5 {[%emt 0:00:10]} 38. Rf7 {[%emt 0:00:19]} Ka7 {[%emt 0:00:22]} 39. a5 {[%emt 0:03:22]} d4 {[%emt 0:01:13]} 40. cxd4 {[%emt 0:00:06]} Rxa5 {[%emt 0:00:02]} 41. Ke3 {[%emt 0:00:07]} Ra2 {[%emt 0:00:53]} 42. Rf2 {[%emt 0:00:21]} b5 {[%emt 0:01:02]} 43. d5 {[%emt 0:00:15]} Kb6 {[%emt 0:00:14]} 44. Kd4 {[%emt 0:00:17]} a5 {[%emt 0:02:55]} 45. Rf6+ {[%emt 0:05:35]} Kc7 {[%emt 0:00:15]} 46. Kc5 {[%emt 0:00:55]} Rxb2 {[%emt 0:00:53]} 47. Rf7+ {[%emt 0:00:22]} Kd8 {[%emt 0:00:11]} 48. d6 {[%emt 0:00:24]} Rd2 {[%emt 0:01:03]} 49. Kc6 {[%emt 0:00:36]} Ke8 {[%emt 0:00:18]} 50. Re7+ {[%emt 0:00:22]} Kf8 {[%emt 0:00:35]} 51. Ra7 {[%emt 0:01:57]} c3 {[%emt 0:00:28]} 52. Kxb5 {[%emt 0:01:36]} Rxd6 {[%emt 0:00:33]} 53. Rc7 {[%emt 0:00:06]} Rd2 {[%emt 0:00:34]} 54. Rxc3 {[%emt 0:00:15]} Rxh2 {[%emt 0:00:13]} 55. Kxa5 {[%emt 0:00:05]} Kf7 {[%emt 0:00:19]} 56. Kb4 {[%emt 0:00:09]} Rf2 {[%emt 0:00:16]} 57. Rc5 {[%emt 0:00:18]} Kg6 {[%emt 0:00:18]} 58. Rc6+ {[%emt 0:00:21]} Kg5 {[%emt 0:00:20]} 59. Rc5+ {[%emt 0:00:18]} Rf5 {[%emt 0:00:17]} 60. Rc8 {[%emt 0:00:10]} Rf3 {[%emt 0:00:33]} 61. Rc5+ {[%emt 0:00:05]} Kg6 {[%emt 0:00:15]} 62. Rc6+ {[%emt 0:00:22]} Kf5 {[%emt 0:00:29]} 63. Rc5+ {[%emt 0:00:07]} Ke4 {[%emt 0:00:18]} 64. Rxh5 {[%emt 0:00:08]} Rxg3 {[%emt 0:00:06]} 65. Rh8 {[%emt 0:00:12]} Re3 {[%emt 0:00:24]} 66. Kc4 {[%emt 0:00:17]} g3 {[%emt 0:00:23]} 67. Rg8 {[%emt 0:00:18]} Kf3 {[%emt 0:00:17]} 68. Kd4 {[%emt 0:00:06]} Re7 {[%emt 0:00:12]} 69. Rf8+ {[%emt 0:00:12]} Kg2 {[%emt 0:00:06]} 70. Kd3 {[%emt 0:00:09]} Kg1 {[%emt 0:00:08]} 71. Kd2 {[%emt 0:00:14]} Re5 {[%emt 0:00:23]} 72. Rf7 {[%emt 0:00:19]} g2 {[%emt 0:00:08]} 73. Rf8 {[%emt 0:00:05]} Kh2 {[%emt 0:00:18]} 74. Rh8+ {[%emt 0:00:07]} Kg3 {[%emt 0:00:02]} 75. Rg8+ {[%emt 0:00:06]} Kf3 {[%emt 0:00:03]} 76. Rg7 {[%emt 0:00:14]} Re4 {[%emt 0:00:17]} 77. Kd3 {[%emt 0:00:29]} Rg4 {[%emt 0:00:08]} 78. Rf7+ {[%emt 0:00:02]} Kg3 {[%emt 0:00:06]} 0-1

[Event "Presidents Day IM-Norm 2024"]
[Site "Santa Clara"]
[Date "2024.02.18"]
[Round "6.4"]
[White "Bansal, Advay"]
[Black "Guo, Ethan"]
[Result "1/2-1/2"]
[ECO "B90"]
[WhiteElo "2253"]
[BlackElo "2099"]
[Annotator "TA"]
[PlyCount "62"]
[EventDate "2024.02.13"]
[EventType "tourn"]
[EventCountry "USA"]
[SourceTitle "playchess.com"]
[Source "ChessBase"]
[SourceQuality "1"]
[TimeControl "5400+30"]

{[%evp 13,62,4,17,15,36,20,27,12,21,18,60,52,50,56,62,0,0,0,0,0,0,0,45,45,106,106,116,116,214,143,158,165,147,153,150,149,150,163,432,11,10,7,14,0,0,0,0,0,0,0,0]} 1. e4 {[%emt 0:00:00]} c5 {[%emt 0:03:40]} 2. Nf3 {[%emt 0:00:53]} d6 {[%emt 0:00:05]} 3. d4 {[%emt 0:00:05]} cxd4 {[%emt 0:00:03]} 4. Nxd4 {[%emt 0:00:06]} Nf6 {[%emt 0:00:06]} 5. Nc3 {[%emt 0:00:06]} a6 {[%emt 0:00:04]} 6. Bd3 {[%emt 0:00:09]} e5 {[%emt 0:00:04]} 7. Nde2 {[%emt 0:00:10]} Be6 {[%emt 0:00:10]} 8. f4 {[%emt 0:01:25]} exf4 {[%emt 0:00:20]} 9. Nxf4 {[%emt 0:00:10]} Nc6 {[%emt 0:00:16]} 10. Nxe6 {[%emt 0:02:54] White has an edge.} fxe6 {[%emt 0:00:06]} 11. Bc4 {[%emt 0:01:38]} Nxe4 {[%emt 0:03:46] And now ...Qh4+ would win.} 12. Qh5+ {[%emt 0:00:06]} g6 {[%emt 0:00:09]} 13. Qh3 {[%emt 0:00:02]} Nxc3 {[%emt 0:01:41]} 14. Qxe6+ {[%emt 0:00:28]} ({Better is} 14. bxc3 $14 Qe7 15. Ba3 (15. Qxe6 Bg7 $14) (15. Bxe6 $2 Nd8 $19)) 14... Qe7 $11 {[%emt 0:00:12] White must now prevent ...Qxe6+.} 15. bxc3 {[%emt 0:06:05]} Qxe6+ {[%emt 0:02:22]} 16. Bxe6 {[%emt 0:00:11]} Bg7 {[%emt 0:00:09]} 17. O-O {[%emt 0:12:12]} Ke7 {[%emt 0:08:46]} 18. Bd5 {[%emt 0:07:50] This pair of bishops is nice.} Rhf8 {[%emt 0:01:28] Prevents Rf7+} ({Black should play} 18... Raf8 $14) 19. Rb1 $1 $16 {[%emt 0:17:00]} Rxf1+ {[%emt 0:02:24]} 20. Kxf1 {[%emt 0:00:04]} Na5 {[%emt 0:04:10]} (20... Nd8 $16 21. Bg5+ (21. Bxb7 Rb8 $14) 21... Kd7 22. Bxd8 (22. Bxb7 Rb8 $16) 22... Kxd8) 21. c4 {[%emt 0:06:27][%cal Oc1d2] Threatens to win with Bd2!} (21. Bxb7 Rb8 22. Rb6 (22. Bg5+ $2 Kd7 $19) 22... Rxb7 $19 (22... Nxb7 $2 23. Bf4 $19)) 21... Bd4 {[%emt 0:05:28] [#]} 22. Ke2 $1 {[%emt 0:06:45]} Rf8 {[%emt 0:03:17]} 23. Kd3 {[%emt 0:13:10]} (23. Bxb7 $6 Rb8 24. Bg5+ Kd7 $11) 23... Bc5 {[%emt 0:00:53] [#]} 24. Bh6 $1 {[%emt 0:03:34]} (24. Bxb7 $2 Rb8 25. Bd2 (25. Bg5+ $2 Kd7 $19) 25... Nxb7 $19) 24... Rf2 {[%emt 0:04:51]} 25. Bg5+ {[%emt 0:01:00]} (25. Bxb7 $6 Nxb7 26. Rxb7+ Ke6 $11) 25... Kf8 $2 {[%emt 0:01:26]} (25... Ke8 {is a better defense.} 26. Re1+ (26. Bxb7 Nxb7 27. Rxb7 Rxg2 $11) 26... Kd7) 26. Bf3 $2 {[%emt 0:00:27]} ({Inferior is} 26. Bxb7 Nxb7 27. Rxb7 Rxg2 $11) (26. Re1 $18 {[%cal Rg5h6]} Kg7 27. Re7+ Kf8 28. Rc7 (28. Bxb7 $2 Rf5 $17) (28. Rxh7 Nc6 $18)) 26... Nc6 $1 $11 {[%emt 0:00:58] The position is equal.} 27. Bh4 {[%emt 0:14:48]} Nb4+ {[%emt 0:01:38] [#]} 28. Rxb4 $1 {[%emt 0:00:12]} Rxf3+ {[%emt 0:00:06]} 29. gxf3 {[%emt 0:00:03]} Bxb4 {[%emt 0:00:28]} 30. Kd4 {[%emt 0:00:16]} Ke8 {[%emt 0:00:40]} 31. Kd5 {[%emt 0:00:04]} Kd7 {[%emt 0:00:16] Blacks defense is rewarded with a draw.   Weighted Error Value: White=0.30/Black=0.27 (precise) .  Missed win:     	White=1     	---        Mistake:       	White=1     	Black=3      Inaccurate:     	White=1     	Black=2      OK:         	White=12    	Black=5      Best:        	---       	Black=6      Strong:       	White=1     	Black=1} 1/2-1/2

[Event "Presidents Day IM-Norm 2024"]
[Site "Santa Clara"]
[Date "2024.02.18"]
[Round "6.5"]
[White "Raja Harshit"]
[Black "Vatsal Singhania"]
[Result "1/2-1/2"]
[ECO "B57"]
[WhiteElo "2508"]
[BlackElo "2252"]
[Annotator "TA"]
[PlyCount "99"]
[EventDate "2024.02.13"]
[EventType "tourn"]
[EventCountry "USA"]
[SourceTitle "playchess.com"]
[Source "ChessBase"]
[SourceQuality "1"]
[TimeControl "5400+30"]

{[%evp 17,99,19,34,20,57,52,65,60,68,18,71,77,85,11,82,75,84,45,37,34,22,27,29,31,46,32,34,37,29,30,176,171,165,170,222,221,222,220,208,214,218,211,220,186,216,215,221,212,218,220,222,220,227,219,225,222,216,222,179,123,130,118,140,87,112,109,109,123,108,129,122,113,112,66,85,12,14,0,0,0,0,0,0,0]} 1. e4 {[%emt 0:02:58]} c5 {[%emt 0:00:05]} 2. Nf3 {[%emt 0:00:10]} d6 {[%emt 0:00:04]} 3. d4 {[%emt 0:00:11]} cxd4 {[%emt 0:00:04]} 4. Nxd4 {[%emt 0:00:05]} Nf6 {[%emt 0:00:04]} 5. Nc3 {[%emt 0:00:08]} Nc6 {[%emt 0:00:03]} 6. Bc4 {[%emt 0:00:38]} Qb6 {[%emt 0:00:06]} 7. Nb3 {[%emt 0:00:09]} e6 {[%emt 0:00:35]} 8. Bf4 {[%emt 0:00:17]} Ne5 {[%emt 0:04:35]} 9. Be2 {[%emt 0:00:10]} a6 {[%emt 1:29:24]} 10. g4 {[%emt 0:01:10]} Be7 {[%emt 0:00:00]} 11. Bg3 {[%emt 0:02:26]} Qc7 {[%emt 0:00:00]} 12. f4 {[%emt 0:05:32] White is slightly better.} Nc6 {[%emt 0:00:00]} 13. a4 {[%emt 0:04:32]} ({White should try} 13. g5 $14 Nd7 14. Qd2) 13... b6 {[%emt 0:00:00]} (13... O-O $11) 14. Qd2 $16 {[%emt 0:06:20]} Bb7 {[%emt 0:00:00]} 15. O-O-O {[%emt 0:12:30]} (15. g5 $16 Nd7 16. f5) 15... Nb4 {[%emt 0:00:00] [#]} (15... b5 $1 $11) 16. Bf3 $1 {[%emt 0:07:19]} d5 {[%emt 0:00:00]} 17. exd5 {[%emt 0:12:46]} (17. f5 {looks sharper.} Qc8 18. e5 Nd7 19. Kb1) 17... Nfxd5 {[%emt 0:00:00]} 18. Nxd5 {[%emt 0:00:20]} Bxd5 {[%emt 0:00:00]} 19. Bxd5 {[%emt 0:00:19]} Nxd5 {[%emt 0:00:00]} 20. f5 {[%emt 0:01:00]} Qc4 {[%emt 0:00:00]} 21. Qd4 {[%emt 0:07:28]} Rc8 {[%emt 0:00:00][%csl LRb3,LRc2]} 22. Qxc4 {[%emt 0:00:07]} Rxc4 {[%emt 0:00:00]} 23. Rhe1 {[%emt 0:00:16] Dodges Ne3} Kd7 {[%emt 0:00:00]} (23... Rxg4 $11 24. a5 (24. fxe6 fxe6 25. Nd4 Kf7 $11) 24... bxa5) 24. Nd4 $18 {[%emt 0:00:14]} Rxa4 {[%emt 0:00:00]} 25. Kb1 {[%emt 0:00:13]} (25. fxe6+ fxe6 26. Kb1 (26. Rxe6 Bc5 $11) (26. Nxe6 Ra1+ 27. Kd2 Rxd1+ 28. Kxd1 g6 $11) 26... Kc8 27. Nxe6 (27. Rxe6 Bc5 $18) 27... Nf6) 25... Bf6 {[%emt 0:00:00]} (25... Bd6 {might work better.} 26. fxe6+ fxe6) 26. fxe6+ {[%emt 0:09:19]} fxe6 {[%emt 0:00:00]} 27. Nxe6 {[%emt 0:00:03]} Kc6 {[%emt 0:00:00][%cal Oa4b4]} 28. g5 {[%emt 0:00:12]} Nc3+ {[%emt 0:00:00]} 29. bxc3 {[%emt 0:00:04]} Bxc3 {[%emt 0:00:00][%csl Gc3][%cal Ra4a1]} 30. Rd6+ {[%emt 0:00:05]} Kb5 {[%emt 0:00:00][%csl Gc3][%cal Ra4a1] [#]} 31. Re5+ $1 {[%emt 0:05:08]} Bxe5 {[%emt 0:00:00]} 32. Bxe5 {[%emt 0:00:02]} Rc8 {[%emt 0:00:00]} 33. Nd4+ {[%emt 0:00:53]} (33. Nxg7 Rb4+ 34. Kc1 Re4) 33... Kc5 {[%emt 0:00:00]} 34. Nb3+ {[%emt 0:00:48]} Kb5 {[%emt 0:00:00]} 35. Bd4 {[%emt 0:02:12]} Rc6 {[%emt 0:00:00] [#]} 36. Rd5+ {[%emt 0:00:04]} Kc4 {[%emt 0:00:00]} 37. Rd7 {[%emt 0:00:09]} Rg6 {[%emt 0:00:00]} 38. h4 {[%emt 0:01:32]} (38. Rxg7 $6 Rxg7 39. Bxg7 Kd5 $14) ({Better is} 38. Nd2+ $18 Kb5 39. Nf3 (39. Bxg7 Rxg5 40. Nf3 Rh5 $14)) 38... Kb5 $16 {[%emt 0:00:00]} 39. Rb7 {[%emt 0:02:57]} (39. Rxg7 $6 Rxg7 40. Bxg7 Rxh4 $11) 39... Rb4 {[%emt 0:00:00]} 40. Ka2 {[%emt 0:04:20]} (40. Rxg7 $6 Rxg7 41. Bxg7 a5 $11) (40. Kb2 $142) 40... Kc6 {[%emt 0:00:00]} 41. Rf7 {[%emt 0:01:09]} (41. Rxg7 Rxg7 42. Bxg7 Rxh4 $11) 41... Kd5 {[%emt 0:00:00][%cal Ob4b3]} 42. c3 {[%emt 0:04:40] White is more active.} (42. Rxg7 Rxg7 (42... Rxd4 $2 43. Rd7+ Ke6 44. Rxd4 $18) 43. Bxg7 Rxh4 $11) 42... Ra4+ {[%emt 0:00:00]} 43. Kb2 {[%emt 0:00:01]} Re6 {[%emt 0:00:00]} 44. Nc1 {[%emt 0:00:06] Against Re2+} Re4 {[%emt 0:00:00]} 45. h5 {[%emt 0:01:54]} (45. Rxg7 Rxh4 46. Bxb6 Rh2+ 47. Kb3 Ra1 48. c4+ Kc6 $11) (45. Bxb6 $16 {Threatens to win with Nd3.} Rxh4 46. Nd3 (46. Rxg7 Rh2+ 47. Kb1 Rg4 $16)) 45... Rh4 {[%emt 0:00:00]} 46. Rxg7 {[%emt 0:03:43]} (46. Nd3 $16 Rh2+ 47. Rf2 (47. Kb3 Ra1 $18) 47... Rxf2+ 48. Nxf2) 46... Rh2+ $1 $11 {[%emt 0:00:00] The position is equal.} 47. Kb3 {[%emt 0:02:31]} Ra1 {[%emt 0:00:00] White must now prevent ...Rb1+.} 48. Rd7+ {[%emt 0:00:26]} (48. Nd3 $5 Rb1+ $8 49. Ka3 Ra1+ 50. Kb3 Rb1+ 51. Ka3 Ra1+ 52. Kb3 $11) 48... Kc6 $1 {[%emt 0:00:00]} 49. Rxh7 {[%emt 0:00:04][%cal Og5g6] Hoping for g6!} Rxc1 {[%emt 0:00:00]} 50. g6 {[%emt 0:02:02] Weighted Error Value: White=0.16 (very precise) /Black=0.16 (very precise) .  Mistake:       	White=6     	Black=4      Inaccurate:     	White=1     	Black=1      OK:         	White=18    	Black=14     Best:        	White=4     	Black=6      Strong:       	White=1     	Black=2} 1/2-1/2

[Event "Presidents Day IM-Norm 2024"]
[Site "Santa Clara"]
[Date "2024.02.19"]
[Round "7.1"]
[White "Vatsal Singhania"]
[Black "Yan, Nathan"]
[Result "1/2-1/2"]
[ECO "C54"]
[WhiteElo "2252"]
[BlackElo "2311"]
[Annotator "TA"]
[PlyCount "71"]
[EventDate "2024.02.13"]
[EventType "tourn"]
[EventCountry "USA"]
[SourceTitle "playchess.com"]
[Source "ChessBase"]
[SourceQuality "1"]
[TimeControl "5400+30"]

{[%evp 12,71,0,8,6,8,3,4,32,14,16,7,19,0,-14,-36,-34,-30,-22,-33,-20,-18,-8,-12,-3,-23,-14,-31,-27,-56,-56,-63,-54,-59,-45,-73,-36,-64,-51,-49,41,29,10,6,71,0,0,1,1,0,4,0,0,0,0,-25,-25,-25,-50,-45,-62,-48]} 1. e4 {[%emt 0:00:02]} e5 {[%emt 0:21:02]} 2. Nf3 {[%emt 0:00:05]} Nc6 {[%emt 0:00:43]} 3. Bc4 {[%emt 0:00:06]} Bc5 {[%emt 0:00:19]} 4. O-O {[%emt 0:00:06]} Nf6 {[%emt 0:00:05]} 5. d3 {[%emt 0:00:04]} O-O {[%emt 0:00:11]} 6. Nbd2 {[%emt 0:00:06][%cal Bb1d2,Bd2f1,Bf1g3][%mdl 32]} d6 {[%emt 0:00:07]} 7. c3 {[%emt 0:00:09]} a5 {[%emt 0:00:06]} 8. Re1 {[%emt 0:00:08]} h6 {[%emt 0:00:05]} 9. Nf1 {[%emt 0:00:34]} Ba7 {[%emt 0:00:41] The position is equal.} 10. Be3 {[%emt 0:01:30]} Be6 {[%emt 0:00:38]} 11. Bb5 {[%emt 0:00:15][%cal Bc4b5,Bb5a4,Ba4c2][%mdl 32]} Ne7 {[%emt 0:02:19]} 12. Ng3 {[%emt 0:02:20]} Bxe3 {[%emt 0:01:50]} 13. fxe3 {[%emt 0:00:45]} c6 {[%emt 0:02:17]} 14. Ba4 {[%emt 0:00:05]} Ng6 {[%emt 0:01:30]} 15. d4 {[%emt 0:00:10]} Qc7 {[%emt 0:00:36]} 16. Bc2 {[%emt 0:01:21]} Rad8 {[%emt 0:03:17]} 17. Qe2 {[%emt 0:00:57]} Rfe8 {[%emt 0:05:05]} 18. h3 {[%emt 0:02:02]} b5 {[%emt 0:03:39]} 19. Qf2 {[%emt 0:00:35]} b4 {[%emt 0:01:35]} 20. Nf5 {[%emt 0:03:31]} bxc3 {[%emt 0:05:35]} 21. bxc3 {[%emt 0:00:05]} Rb8 {[%emt 0:03:33]} 22. Nd2 {[%emt 0:04:30][%cal Of5h6]} Rb2 {[%emt 0:03:26]} 23. Rac1 {[%emt 0:00:05][%cal Of5h6]} Nd7 {[%emt 0:01:37]} 24. a4 {[%emt 0:01:00]} Nb6 {[%emt 0:04:15]} 25. Qg3 {[%emt 0:03:31]} Nc4 {[%emt 0:01:38]} ({Black should try} 25... Kh7 $15) 26. Nxc4 $14 {[%emt 0:00:34]} Bxc4 {[%emt 0:00:03]} 27. h4 {[%emt 0:00:15] [#] h5 would now be deadly.} Be6 {[%emt 0:03:51]} (27... h5 $1 $11) 28. h5 {[%emt 0:01:03]} ({Better is} 28. Rf1 $16) 28... Bxf5 $11 {[%emt 0:00:46]} 29. exf5 {[%emt 0:00:36][%cal Be4f5,Bf5f6][%mdl 32] Hoping for f6.} Nf8 {[%emt 0:00:27]} 30. f6 {[%emt 0:05:10]} Ne6 {[%emt 0:03:06]} 31. Re2 {[%emt 0:00:03]} e4 {[%emt 0:02:20]} 32. Rf1 {[%emt 0:02:12]} d5 {[%emt 0:00:27]} 33. Qxc7 {[%emt 0:01:37]} Nxc7 {[%emt 0:00:14]} 34. fxg7 {[%emt 0:00:10]} Kxg7 {[%emt 0:00:13]} 35. Ref2 {[%emt 0:00:42]} Re7 {[%emt 0:01:41]} 36. Rb1 {[%emt 0:01:03] Weighted Error Value: White=0.10 (very precise) /Black=0.15 (very precise) .  Mistake:       	White=1     	Black=2      Inaccurate:     	White=3     	Black=2      OK:         	White=11    	Black=10     Best:        	White=1     	Black=3} 1/2-1/2